[Event "HUN-ch Rapid 2019"]
[Site "Ajka"]
[Date "2019.07.19"]
[Round "2.8"]
[White "Terbe, Julianna"]
[Black "Prohaszka, Peter"]
[Result "0-1"]
[ECO "D00"]
[WhiteElo "2298"]
[BlackElo "2598"]
[Annotator "ChessBase"]
[PlyCount "78"]
[EventDate "2019.07.18"]
[EventType "swiss"]
[EventCountry "HUN"]
[SourceTitle "playchess.com"]
[Source "ChessBase"]
[SourceQuality "1"]
[TimeControl "1200+5"]

1. d4 {[%emt 0:00:02]} d5 {[%emt 0:00:09]} 2. Bf4 {[%emt 0:00:05]} c5 {[%emt 0:00:01]} 3. e3 {[%emt 0:00:05]} cxd4 {[%emt 0:00:01]} 4. exd4 {[%emt 0:00:03]} Nc6 {[%emt 0:00:01]} 5. c3 {[%emt 0:00:12]} Bf5 {[%emt 0:00:03]} 6. Nf3 {[%emt 0:00:05]} e6 {[%emt 0:00:01]} 7. Nbd2 {[%emt 0:00:09]} Bd6 {[%emt 0:00:07]} 8. Bg3 {[%emt 0:00:02]} Nf6 {[%emt 0:00:07]} 9. Be2 {[%emt 0:00:05]} h6 {[%emt 0:00:16]} 10. O-O {[%emt 0:00:07]} O-O {[%emt 0:00:01]} 11. Re1 {[%emt 0:00:04]} Rb8 {[%emt 0:00:38]} 12. a4 {[%emt 0:00:02]} Bxg3 {[%emt 0:00:17]} 13. hxg3 {[%emt 0:00:01]} Qb6 {[%emt 0:00:02]} 14. Qb3 {[%emt 0:00:14]} Qc7 {[%emt 0:00:09]} 15. Qa3 {[%emt 0:00:31]} b6 {[%emt 0:00:12]} 16. Ba6 {[%emt 0:01:03]} Rfe8 {[%emt 0:01:13]} 17. Ne5 {[%emt 0:00:24]} Nxe5 {[%emt 0:00:29]} 18. dxe5 {[%emt 0:01:47]} Ng4 {[%emt 0:03:12]} 19. Nf3 {[%emt 0:01:39]} Rbd8 {[%emt 0:07:22]} 20. Bb5 {[%emt 0:00:40]} Rf8 {[%emt 0:00:13]} 21. Re2 {[%emt 0:02:12]} Be4 {[%emt 0:02:03]} 22. Nd4 {[%emt 0:03:32]} Nxe5 {[%emt 0:00:44]} 23. f3 {[%emt 0:02:43]} Bg6 {[%emt 0:00:21]} 24. f4 {[%emt 0:00:06]} Ng4 {[%emt 0:00:47]} 25. Nc6 {[%emt 0:00:36]} Rd7 {[%emt 0:00:38]} 26. Nd4 {[%emt 0:01:20]} Rd6 {[%emt 0:00:06]} 27. a5 {[%emt 0:00:36]} a6 {[%emt 0:00:50]} 28. Bxa6 {[%emt 0:01:25]} bxa5 {[%emt 0:00:02]} 29. Bb5 {[%emt 0:00:18]} Ra8 {[%emt 0:00:19]} 30. Kh1 {[%emt 0:00:20]} Be4 {[%emt 0:00:14]} 31. Ba4 {[%emt 0:01:45]} Rb6 {[%emt 0:00:06]} 32. Bc2 {[%emt 0:00:12]} Qd8 {[%emt 0:00:33]} 33. Bxe4 {[%emt 0:00:07]} dxe4 {[%emt 0:00:02]} 34. Kg1 {[%emt 0:00:08]} Qd5 {[%emt 0:00:11]} 35. Rae1 {[%emt 0:00:06]} Qh5 {[%emt 0:00:06]} 36. Rxe4 {[%emt 0:00:08]} Qh2+ {[%emt 0:00:03]} 37. Kf1 {[%emt 0:00:00]} Qh1+ {[%emt 0:00:07]} 38. Ke2 {[%emt 0:00:01]} Qxg2+ {[%emt 0:00:01]} 39. Kd1 {[%emt 0:00:11]} Nf2+ {[%emt 0:00:01]} 0-1

[Event "HUN-ch Rapid 2019"]
[Site "Ajka"]
[Date "2019.07.19"]
[Round "2.9"]
[White "Medvegy, Zoltan"]
[Black "Balint, Vilmos"]
[Result "1-0"]
[ECO "A16"]
[WhiteElo "2539"]
[BlackElo "2203"]
[Annotator "ChessBase"]
[PlyCount "43"]
[EventDate "2019.07.18"]
[EventType "swiss"]
[EventCountry "HUN"]
[SourceTitle "playchess.com"]
[Source "ChessBase"]
[SourceQuality "1"]
[TimeControl "1200+5"]

1. c4 {[%emt 0:00:01]} Nf6 {[%emt 0:00:10]} 2. Nc3 {[%emt 0:00:05]} d5 {[%emt 0:00:49]} 3. cxd5 {[%emt 0:00:48]} Nxd5 {[%emt 0:00:03]} 4. Nf3 {[%emt 0:00:01]} g6 {[%emt 0:00:09]} 5. h4 {[%emt 0:00:09]} h6 {[%emt 0:00:06]} 6. e4 {[%emt 0:00:22]} Nxc3 {[%emt 0:00:17]} 7. dxc3 {[%emt 0:00:02]} Qxd1+ {[%emt 0:00:08]} 8. Kxd1 {[%emt 0:00:02]} Bg4 {[%emt 0:00:15]} 9. Bf4 {[%emt 0:02:15]} c6 {[%emt 0:01:25]} 10. Kc2 {[%emt 0:00:03]} Nd7 {[%emt 0:00:37]} 11. Bc4 {[%emt 0:01:03]} Bxf3 {[%emt 0:01:19]} 12. gxf3 {[%emt 0:00:02]} e6 {[%emt 0:00:01]} 13. b4 {[%emt 0:02:11]} O-O-O {[%emt 0:02:17]} 14. a4 {[%emt 0:00:36]} Bg7 {[%emt 0:00:51]} 15. Be3 {[%emt 0:01:14]} Kb8 {[%emt 0:00:43]} 16. f4 {[%emt 0:01:18]} Nf6 {[%emt 0:01:50]} 17. f3 {[%emt 0:00:07]} Nh5 {[%emt 0:01:02]} 18. Rad1 {[%emt 0:04:02]} Bf6 {[%emt 0:00:46]} 19. Rxd8+ {[%emt 0:00:16]} Rxd8 {[%emt 0:00:20]} 20. f5 {[%emt 0:00:08]} gxf5 {[%emt 0:00:04]} 21. exf5 {[%emt 0:00:02]} Ng3 {[%emt 0:00:04]} 22. Bf4+ {[%emt 0:00:03]} 1-0

[Event "HUN-ch Rapid 2019"]
[Site "Ajka"]
[Date "2019.07.19"]
[Round "2.10"]
[White "Seres, Bela"]
[Black "Czebe, Attila"]
[Result "0-1"]
[ECO "B07"]
[WhiteElo "2161"]
[BlackElo "2436"]
[Annotator "NA"]
[PlyCount "58"]
[EventDate "2019.07.18"]
[EventType "swiss"]
[EventCountry "HUN"]
[SourceTitle "playchess.com"]
[Source "ChessBase"]
[SourceQuality "1"]
[TimeControl "1200+5"]

1. e4 {[%emt 0:00:00]} d6 {[%emt 0:00:01]} 2. d4 {[%emt 0:00:02]} Nf6 {[%emt 0:00:02]} 3. Nc3 {[%emt 0:00:00]} Nbd7 {[%emt 0:00:01]} 4. g4 {[%emt 0:00:10]} h6 {[%emt 0:00:18]} 5. Bg2 {[%emt 0:00:13]} e5 {[%emt 0:00:20]} 6. d5 {[%emt 0:00:02]} Be7 {[%emt 0:00:05]} 7. h3 {[%emt 0:00:06]} Nf8 {[%emt 0:00:05]} 8. Nge2 {[%emt 0:00:08]} Ng6 {[%emt 0:00:03]} 9. Be3 {[%emt 0:00:45]} h5 {[%emt 0:00:50]} 10. g5 {[%emt 0:00:23]} Nh4 {[%emt 0:00:02]} 11. gxf6 {[%emt 0:03:35]} Nxg2+ {[%emt 0:00:02]} 12. Kd2 {[%emt 0:00:02]} Bxf6 {[%emt 0:00:02]} 13. Qg1 {[%emt 0:00:16]} Nxe3 {[%emt 0:01:35]} 14. fxe3 {[%emt 0:00:15]} h4 {[%emt 0:00:08]} 15. Qg2 {[%emt 0:00:51]} c5 {[%emt 0:00:06]} 16. Raf1 {[%emt 0:00:31]} Bd7 {[%emt 0:00:04]} 17. Nc1 {[%emt 0:00:39]} b5 {[%emt 0:00:23]} 18. Nd3 {[%emt 0:00:40]} a5 {[%emt 0:00:02]} 19. Nf2 {[%emt 0:00:50]} a4 {[%emt 0:00:54]} 20. Ng4 {[%emt 0:00:06]} Bg5 {[%emt 0:00:51]} 21. Qf3 {[%emt 0:00:56]} f6 {[%emt 0:00:02]} 22. Rhg1 {[%emt 0:00:01]} Qa5 {[%emt 0:00:06]} 23. Nxe5 {[%emt 0:01:54]} dxe5 {[%emt 0:00:10]} 24. Rxg5 {[%emt 0:00:01]} fxg5 {[%emt 0:00:20]} 25. Qf7+ {[%emt 0:00:27]} Kd8 {[%emt 0:00:02]} 26. Qxg7 {[%emt 0:00:17]} Re8 {[%emt 0:00:04]} 27. Rf7 {[%emt 0:00:49]} Ra7 {[%emt 0:00:11]} 28. Qxg5+ {[%emt 0:00:51]} Kc8 {[%emt 0:00:04]} 29. Qg6 {[%emt 0:00:01]} Rd8 {[%emt 0:01:20]} 0-1

[Event "HUN-ch Rapid 2019"]
[Site "Ajka"]
[Date "2019.07.19"]
[Round "2.11"]
[White "Vertetics, Attila"]
[Black "Csati, Oliver"]
[Result "1-0"]
[ECO "A45"]
[WhiteElo "2438"]
[BlackElo "2233"]
[Annotator "NA"]
[PlyCount "35"]
[EventDate "2019.07.18"]
[EventType "swiss"]
[EventCountry "HUN"]
[SourceTitle "playchess.com"]
[Source "ChessBase"]
[SourceQuality "1"]
[TimeControl "1200+5"]

1. d4 {[%emt 0:00:02]} Nf6 {[%emt 0:00:02]} 2. Bg5 {[%emt 0:00:02]} d5 {[%emt 0:00:16]} 3. e3 {[%emt 0:00:02]} c5 {[%emt 0:00:59]} 4. c3 {[%emt 0:00:05]} Nc6 {[%emt 0:00:45]} 5. Nd2 {[%emt 0:00:11]} Bf5 {[%emt 0:00:53]} 6. dxc5 {[%emt 0:02:35]} e5 {[%emt 0:01:52]} 7. b4 {[%emt 0:00:17]} e4 {[%emt 0:00:41]} 8. Ne2 {[%emt 0:00:36]} h6 {[%emt 0:00:34]} 9. Bh4 {[%emt 0:00:02]} g5 {[%emt 0:00:08]} 10. Bg3 {[%emt 0:00:02]} Bg4 {[%emt 0:03:40]} 11. Qa4 {[%emt 0:00:41]} Bxe2 {[%emt 0:01:26]} 12. Bxe2 {[%emt 0:00:03]} Nd7 {[%emt 0:01:34]} 13. Nb3 {[%emt 0:00:20]} a5 {[%emt 0:00:17]} 14. b5 {[%emt 0:00:08]} Nce5 {[%emt 0:03:01]} 15. c6 {[%emt 0:00:21]} bxc6 {[%emt 0:00:28]} 16. bxc6 {[%emt 0:00:01]} Nb6 {[%emt 0:00:10]} 17. Qd4 {[%emt 0:00:02]} Ng6 {[%emt 0:00:17]} 18. c7 {[%emt 0:00:01]} 1-0

[Event "HUN-ch Rapid 2019"]
[Site "Ajka"]
[Date "2019.07.19"]
[Round "2.12"]
[White "Kovacs, Marton"]
[Black "Aczel, Gergely"]
[Result "0-1"]
[ECO "A45"]
[WhiteElo "2147"]
[BlackElo "2540"]
[Annotator "ChessBase"]
[PlyCount "78"]
[EventDate "2019.07.18"]
[EventType "swiss"]
[EventCountry "HUN"]
[SourceTitle "playchess.com"]
[Source "ChessBase"]
[SourceQuality "1"]
[TimeControl "1200+5"]

1. d4 {[%emt 0:00:01]} Nf6 {[%emt 0:00:02]} 2. Bf4 d5 {[%emt 0:00:09]} 3. e3 {[%emt 0:00:08]} e6 {[%emt 0:00:02]} 4. Nf3 {[%emt 0:00:23]} Bd6 {[%emt 0:00:02]} 5. Bg3 {[%emt 0:00:01]} O-O {[%emt 0:00:05]} 6. Bd3 {[%emt 0:00:44]} b6 {[%emt 0:00:04]} 7. Nbd2 {[%emt 0:00:42]} Bb7 {[%emt 0:00:02]} 8. Ne5 {[%emt 0:00:17]} c5 {[%emt 0:00:18]} 9. c3 {[%emt 0:00:18]} Nc6 {[%emt 0:00:04]} 10. Qe2 {[%emt 0:01:32]} Ne7 {[%emt 0:00:18]} 11. Bh4 {[%emt 0:01:07]} Ne4 {[%emt 0:00:47]} 12. Nxe4 {[%emt 0:02:42]} dxe4 {[%emt 0:00:01]} 13. Bc2 {[%emt 0:00:48]} Rc8 {[%emt 0:02:21]} 14. f3 {[%emt 0:02:52]} f6 {[%emt 0:07:06]} 15. Ng4 {[%emt 0:01:50]} Ng6 {[%emt 0:02:54]} 16. Bg3 {[%emt 0:00:23]} f5 {[%emt 0:00:38]} 17. fxe4 {[%emt 0:03:36]} fxg4 {[%emt 0:00:10]} 18. e5 {[%emt 0:00:32]} Be7 {[%emt 0:00:56]} 19. Qxg4 {[%emt 0:00:26]} Bg5 {[%emt 0:00:20]} 20. Bxg6 {[%emt 0:01:01]} hxg6 {[%emt 0:00:03]} 21. Qxe6+ {[%emt 0:00:25]} Kh7 {[%emt 0:00:08]} 22. Qh3+ {[%emt 0:00:04]} Bh6 {[%emt 0:00:03]} 23. O-O-O {[%emt 0:00:26]} cxd4 {[%emt 0:01:23]} 24. Bf4 {[%emt 0:00:35]} d3 {[%emt 0:00:24]} 25. Rd2 {[%emt 0:00:46]} g5 {[%emt 0:01:27]} 26. Bg3 {[%emt 0:00:13]} Rc4 {[%emt 0:00:07]} 27. Qe6 {[%emt 0:00:08]} Bd5 {[%emt 0:00:35]} 28. Qd6 {[%emt 0:00:01]} Be4 {[%emt 0:00:56]} 29. Qe6 {[%emt 0:00:01]} Qc8 {[%emt 0:00:11]} 30. Qxc8 {[%emt 0:00:02]} Rcxc8 {[%emt 0:00:08]} 31. Rf2 {[%emt 0:00:12]} Rxf2 {[%emt 0:00:10]} 32. Bxf2 {[%emt 0:00:01]} g4 {[%emt 0:00:04]} 33. Kd2 {[%emt 0:00:03]} Rf8 {[%emt 0:00:29]} 34. Bg3 {[%emt 0:00:13]} Kg6 {[%emt 0:00:01]} 35. Rg1 {[%emt 0:00:04]} Bg5 {[%emt 0:00:03]} 36. h4 {[%emt 0:00:03]} Be7 {[%emt 0:00:03]} 37. Bf4 {[%emt 0:00:01]} Bxh4 {[%emt 0:00:03]} 38. g3 {[%emt 0:00:08]} Be7 {[%emt 0:00:02]} 39. c4 {[%emt 0:00:09]} Bb4+ {[%emt 0:00:03]} 0-1

[Event "HUN-ch Rapid 2019"]
[Site "Ajka"]
[Date "2019.07.19"]
[Round "2.13"]
[White "Horvath, Adam"]
[Black "Kassay, Krisztian"]
[Result "1-0"]
[ECO "B07"]
[WhiteElo "2517"]
[BlackElo "2174"]
[Annotator "ChessBase"]
[PlyCount "83"]
[EventDate "2019.07.18"]
[EventType "swiss"]
[EventCountry "HUN"]
[SourceTitle "playchess.com"]
[Source "ChessBase"]
[SourceQuality "1"]
[TimeControl "1200+5"]

1. e4 {[%emt 0:00:02]} d6 {[%emt 0:00:06]} 2. d4 {[%emt 0:00:01]} Nf6 {[%emt 0:00:02]} 3. Nc3 {[%emt 0:00:01]} Nbd7 {[%emt 0:00:02]} 4. Nf3 {[%emt 0:00:02]} e5 {[%emt 0:00:03]} 5. Bc4 {[%emt 0:00:02]} Be7 {[%emt 0:00:02]} 6. a4 {[%emt 0:00:01]} O-O {[%emt 0:00:24]} 7. O-O {[%emt 0:00:02]} c6 {[%emt 0:00:07]} 8. Re1 {[%emt 0:00:10]} a5 {[%emt 0:00:06]} 9. h3 {[%emt 0:00:17]} Qc7 {[%emt 0:00:13]} 10. Bd3 {[%emt 0:00:37]} Re8 {[%emt 0:00:38]} 11. b3 {[%emt 0:00:05]} Nf8 {[%emt 0:01:06]} 12. Bb2 {[%emt 0:00:38]} Ng6 {[%emt 0:00:19]} 13. Ne2 {[%emt 0:00:29]} Bf8 {[%emt 0:00:44]} 14. Ng3 {[%emt 0:00:13]} Bd7 {[%emt 0:01:51]} 15. Qd2 {[%emt 0:00:20]} Rad8 {[%emt 0:00:28]} 16. Rad1 {[%emt 0:00:19]} exd4 {[%emt 0:01:15]} 17. Bxd4 {[%emt 0:01:35]} Ne5 {[%emt 0:00:23]} 18. Be2 {[%emt 0:00:40]} c5 {[%emt 0:01:10]} 19. Bc3 {[%emt 0:00:12]} b6 {[%emt 0:02:05]} 20. Nh4 {[%emt 0:02:18]} Bc6 {[%emt 0:01:15]} 21. f4 {[%emt 0:00:24]} Ng6 {[%emt 0:00:36]} 22. Nxg6 {[%emt 0:04:06]} hxg6 {[%emt 0:00:10]} 23. Bf3 {[%emt 0:00:16]} Qb7 {[%emt 0:01:29]} 24. Bxf6 {[%emt 0:02:34]} gxf6 {[%emt 0:00:03]} 25. c4 {[%emt 0:00:01]} Bg7 {[%emt 0:01:00]} 26. Rf1 {[%emt 0:01:29]} Qe7 {[%emt 0:03:20]} 27. Rde1 {[%emt 0:00:28]} Bh6 {[%emt 0:00:03]} 28. Re2 {[%emt 0:00:11]} Qb7 {[%emt 0:01:13]} 29. Bg4 {[%emt 0:00:34]} Bxe4 {[%emt 0:00:58]} 30. Rfe1 {[%emt 0:03:22]} f5 {[%emt 0:00:20]} 31. Bxf5 {[%emt 0:00:24]} gxf5 {[%emt 0:00:17]} 32. Nxf5 {[%emt 0:00:01]} Bxf5 {[%emt 0:00:27]} 33. Rxe8+ {[%emt 0:00:02]} Rxe8 {[%emt 0:00:01]} 34. Rxe8+ {[%emt 0:00:01]} Kh7 {[%emt 0:00:17]} 35. Qxd6 {[%emt 0:00:13]} Qd7 {[%emt 0:00:15]} 36. Qxd7 {[%emt 0:00:31]} Bxd7 {[%emt 0:00:01]} 37. Re7 {[%emt 0:00:09]} Be6 {[%emt 0:00:04]} 38. g3 {[%emt 0:00:10]} Kg7 {[%emt 0:00:08]} 39. Rb7 {[%emt 0:00:01]} Bxh3 {[%emt 0:00:07]} 40. Rxb6 {[%emt 0:00:01]} Bf5 {[%emt 0:00:02]} 41. Kf2 {[%emt 0:00:04]} Kf8 {[%emt 0:00:06]} 42. Rxh6 1-0

[Event "HUN-ch Rapid 2019"]
[Site "Ajka"]
[Date "2019.07.19"]
[Round "2.14"]
[White "Szitas, Gabor"]
[Black "Mihok, Oliver"]
[Result "0-1"]
[ECO "B40"]
[WhiteElo "2122"]
[BlackElo "2550"]
[Annotator "ChessBase"]
[PlyCount "110"]
[EventDate "2019.07.18"]
[EventType "swiss"]
[EventCountry "HUN"]
[SourceTitle "playchess.com"]
[Source "ChessBase"]
[SourceQuality "1"]
[TimeControl "1200+5"]

1. e4 {[%emt 0:00:03]} c5 {[%emt 0:00:01]} 2. Nf3 {[%emt 0:00:03]} e6 {[%emt 0:00:02]} 3. Nc3 {[%emt 0:00:03]} Nc6 {[%emt 0:00:02]} 4. Bb5 {[%emt 0:00:02]} Nd4 {[%emt 0:00:07]} 5. O-O {[%emt 0:00:04]} a6 {[%emt 0:00:06]} 6. Be2 {[%emt 0:00:04]} Ne7 {[%emt 0:01:20]} 7. d3 {[%emt 0:00:35]} Nec6 {[%emt 0:00:24]} 8. h3 {[%emt 0:00:09]} Be7 {[%emt 0:00:19]} 9. Re1 {[%emt 0:00:46]} Nxe2+ {[%emt 0:00:34]} 10. Nxe2 {[%emt 0:00:07]} b5 {[%emt 0:00:17]} 11. Ng3 {[%emt 0:00:07]} O-O {[%emt 0:00:26]} 12. Bd2 {[%emt 0:00:58]} Bb7 {[%emt 0:00:15]} 13. Nh2 {[%emt 0:00:18]} f5 {[%emt 0:00:54]} 14. exf5 {[%emt 0:01:09]} exf5 {[%emt 0:00:05]} 15. c3 {[%emt 0:01:00]} Bd6 {[%emt 0:02:56]} 16. Nf3 {[%emt 0:02:36]} Qc7 {[%emt 0:01:09]} 17. Ne2 {[%emt 0:02:54]} Rae8 {[%emt 0:00:39]} 18. d4 {[%emt 0:00:08]} c4 {[%emt 0:01:03]} 19. a4 {[%emt 0:00:08]} Na5 {[%emt 0:00:56]} 20. Nc1 {[%emt 0:00:40]} Bd5 {[%emt 0:00:45]} 21. axb5 {[%emt 0:00:19]} axb5 {[%emt 0:00:01]} 22. Ne5 {[%emt 0:01:25]} Nc6 {[%emt 0:01:41]} 23. f4 {[%emt 0:00:10]} Be7 {[%emt 0:00:28]} 24. Be3 {[%emt 0:01:42]} d6 {[%emt 0:00:12]} 25. Nf3 {[%emt 0:00:34]} Bf6 {[%emt 0:00:19]} 26. Bf2 {[%emt 0:00:12]} Ra8 {[%emt 0:00:25]} 27. Rxa8 {[%emt 0:01:11]} Rxa8 {[%emt 0:00:01]} 28. Ne2 {[%emt 0:00:49]} Qb7 {[%emt 0:00:48]} 29. Ng3 {[%emt 0:00:14]} g6 {[%emt 0:00:19]} 30. h4 {[%emt 0:00:27]} Ne7 {[%emt 0:00:29]} 31. h5 {[%emt 0:00:09]} Bxf3 {[%emt 0:00:10]} 32. gxf3 {[%emt 0:00:36]} Nd5 {[%emt 0:00:14]} 33. Re6 {[%emt 0:00:42]} Qd7 {[%emt 0:00:10]} 34. Qe1 {[%emt 0:00:20]} Kf7 {[%emt 0:00:09]} 35. hxg6+ {[%emt 0:00:20]} hxg6 {[%emt 0:00:02]} 36. Re3 {[%emt 0:00:35]} Nxe3 {[%emt 0:00:07]} 37. Qxe3 {[%emt 0:00:02]} Qe6 {[%emt 0:00:07]} 38. Qd2 {[%emt 0:00:02]} Qd5 {[%emt 0:00:00]} 39. Kg2 {[%emt 0:00:05]} Ra2 {[%emt 0:00:46]} 40. Qc1 {[%emt 0:00:10]} Qa8 {[%emt 0:00:20]} 41. Qh1 {[%emt 0:00:47]} Kg7 {[%emt 0:00:56]} 42. Qb1 {[%emt 0:00:31]} d5 {[%emt 0:00:33]} 43. Qc1 {[%emt 0:00:07]} Kf7 {[%emt 0:00:25]} 44. Qh1 {[%emt 0:00:02]} Bg7 {[%emt 0:00:18]} 45. Qb1 {[%emt 0:00:04]} Ra1 {[%emt 0:00:11]} 46. Qc2 {[%emt 0:00:03]} Qa4 {[%emt 0:00:15]} 47. Qe2 {[%emt 0:00:05]} Qd1 {[%emt 0:00:05]} 48. Qe3 {[%emt 0:00:10]} Qd3 {[%emt 0:00:12]} 49. Qxd3 cxd3 {[%emt 0:00:01]} 50. Be3 {[%emt 0:00:11]} Rb1 {[%emt 0:00:21]} 51. Bd2 {[%emt 0:00:11]} Rxb2 {[%emt 0:00:03]} 52. Nf1 {[%emt 0:00:00]} b4 {[%emt 0:00:10]} 53. Kg3 {[%emt 0:00:02]} Rxd2 {[%emt 0:00:07]} 54. Nxd2 {[%emt 0:00:04]} bxc3 55. Nb1 {[%emt 0:00:11]} Bxd4 {[%emt 0:00:04]} 0-1

[Event "HUN-ch Rapid 2019"]
[Site "Ajka"]
[Date "2019.07.19"]
[Round "2.15"]
[White "Horvath, Peter"]
[Black "Szinavel, Zsolt"]
[Result "1-0"]
[ECO "D96"]
[WhiteElo "2418"]
[BlackElo "2130"]
[Annotator "NA"]
[PlyCount "73"]
[EventDate "2019.07.18"]
[EventType "swiss"]
[EventCountry "HUN"]
[SourceTitle "playchess.com"]
[Source "ChessBase"]
[SourceQuality "1"]
[TimeControl "1200+5"]

1. d4 {[%emt 0:00:03]} c6 {[%emt 0:00:12]} 2. Nf3 {[%emt 0:00:09]} d5 {[%emt 0:00:09]} 3. c4 {[%emt 0:00:09]} Nf6 {[%emt 0:00:13]} 4. Nc3 {[%emt 0:00:06]} g6 {[%emt 0:00:46]} 5. Bf4 {[%emt 0:00:39]} Bg7 {[%emt 0:00:28]} 6. e3 {[%emt 0:00:22]} O-O {[%emt 0:00:09]} 7. h3 {[%emt 0:00:17]} Nbd7 {[%emt 0:01:48]} 8. Be2 {[%emt 0:01:00]} dxc4 {[%emt 0:00:42]} 9. Bxc4 {[%emt 0:00:08]} Nb6 {[%emt 0:00:21]} 10. Bb3 {[%emt 0:00:21]} Nbd5 {[%emt 0:00:29]} 11. Be5 {[%emt 0:00:31]} Qa5 {[%emt 0:00:31]} 12. Rc1 {[%emt 0:00:59]} Ne4 {[%emt 0:00:52]} 13. O-O {[%emt 0:00:32]} Nexc3 {[%emt 0:02:20]} 14. bxc3 {[%emt 0:00:03]} Be6 {[%emt 0:01:01]} 15. e4 {[%emt 0:00:47]} Nc7 {[%emt 0:00:53]} 16. Bxc7 {[%emt 0:00:35]} Qxc7 {[%emt 0:00:04]} 17. Bxe6 {[%emt 0:00:02]} fxe6 {[%emt 0:00:01]} 18. Qb3 {[%emt 0:00:54]} Qd7 {[%emt 0:02:35]} 19. Ng5 {[%emt 0:01:36]} Bh6 {[%emt 0:00:47]} 20. Nxe6 {[%emt 0:00:41]} Rf7 {[%emt 0:00:28]} 21. Rce1 {[%emt 0:01:45]} b6 {[%emt 0:00:28]} 22. f4 {[%emt 0:01:23]} a5 {[%emt 0:00:24]} 23. f5 {[%emt 0:01:54]} a4 {[%emt 0:01:11]} 24. Qxb6 {[%emt 0:00:51]} Bd2 {[%emt 0:00:33]} 25. Re2 {[%emt 0:00:02]} Bxc3 {[%emt 0:00:11]} 26. Qc5 {[%emt 0:00:10]} Ba5 {[%emt 0:00:13]} 27. Qc4 {[%emt 0:00:26]} Kh8 {[%emt 0:02:12]} 28. Ref2 {[%emt 0:00:07]} Bb6 {[%emt 0:00:32]} 29. Kh1 {[%emt 0:00:27]} Rf6 {[%emt 0:00:16]} 30. g4 {[%emt 0:00:30]} gxf5 {[%emt 0:00:10]} 31. gxf5 {[%emt 0:00:06]} Rg8 {[%emt 0:00:17]} 32. Rg2 {[%emt 0:01:10]} Rxg2 {[%emt 0:00:09]} 33. Kxg2 {[%emt 0:00:01]} Qe8 {[%emt 0:00:14]} 34. Rf4 {[%emt 0:00:41]} Rh6 {[%emt 0:00:55]} 35. Rg4 {[%emt 0:00:08]} Qf7 {[%emt 0:00:14]} 36. Qxc6 {[%emt 0:00:25]} Bxd4 {[%emt 0:00:04]} 37. Qc8+ 1-0

[Event "HUN-ch Rapid 2019"]
[Site "Ajka"]
[Date "2019.07.19"]
[Round "2.16"]
[White "Laza, Szabolcs"]
[Black "Videki, Sandor"]
[Result "0-1"]
[ECO "D10"]
[WhiteElo "2185"]
[BlackElo "2401"]
[Annotator "NA"]
[PlyCount "80"]
[EventDate "2019.07.18"]
[EventType "swiss"]
[EventCountry "HUN"]
[SourceTitle "playchess.com"]
[Source "ChessBase"]
[SourceQuality "1"]
[TimeControl "1200+5"]

1. d4 {[%emt 0:00:03]} d5 {[%emt 0:00:12]} 2. c4 {[%emt 0:00:02]} c6 {[%emt 0:00:01]} 3. cxd5 {[%emt 0:00:05]} cxd5 {[%emt 0:00:01]} 4. Bf4 {[%emt 0:00:01]} Nc6 {[%emt 0:00:02]} 5. e3 {[%emt 0:00:07]} Nf6 {[%emt 0:00:09]} 6. Nc3 {[%emt 0:00:04]} a6 {[%emt 0:00:09]} 7. Rc1 {[%emt 0:00:03]} Bf5 {[%emt 0:00:10]} 8. Nf3 {[%emt 0:00:41]} e6 {[%emt 0:00:19]} 9. Bd3 {[%emt 0:00:12]} Bxd3 {[%emt 0:00:13]} 10. Qxd3 {[%emt 0:00:02]} Be7 {[%emt 0:00:07]} 11. O-O {[%emt 0:00:04]} Nh5 {[%emt 0:00:10]} 12. Be5 {[%emt 0:00:38]} f6 {[%emt 0:00:39]} 13. Bg3 {[%emt 0:00:02]} Nxg3 {[%emt 0:02:34]} 14. hxg3 {[%emt 0:00:03]} O-O {[%emt 0:00:03]} 15. e4 {[%emt 0:00:50]} Qd7 {[%emt 0:00:34]} 16. exd5 {[%emt 0:01:58]} exd5 {[%emt 0:00:01]} 17. Nh4 {[%emt 0:00:36]} Rfe8 {[%emt 0:01:16]} 18. Nf5 {[%emt 0:01:36]} Bb4 {[%emt 0:00:04]} 19. Ne3 {[%emt 0:02:35]} Bxc3 {[%emt 0:00:06]} 20. Qxc3 {[%emt 0:00:10]} Re4 {[%emt 0:00:30]} 21. Rfd1 {[%emt 0:00:21]} Rd8 {[%emt 0:00:02]} 22. Qc5 {[%emt 0:00:47]} Ne7 {[%emt 0:00:41]} 23. Qc7 {[%emt 0:00:29]} Nc6 {[%emt 0:00:19]} 24. Qb6 {[%emt 0:00:17]} Qe7 {[%emt 0:02:09]} 25. Nf5 {[%emt 0:03:14]} Qd7 {[%emt 0:00:03]} 26. Ne3 {[%emt 0:00:15]} Qe7 {[%emt 0:00:09]} 27. Nf5 {[%emt 0:00:01]} Qd7 {[%emt 0:00:01]} 28. Ne3 {[%emt 0:00:01]} Qe8 {[%emt 0:01:32]} 29. Qxb7 {[%emt 0:00:27]} Rxe3 {[%emt 0:02:38]} 30. Qxc6 {[%emt 0:01:19]} Re2 {[%emt 0:01:35]} 31. Qb7 {[%emt 0:01:48]} Qb5 {[%emt 0:00:32]} 32. Rc7 {[%emt 0:00:21]} Qxb7 {[%emt 0:00:17]} 33. Rxb7 {[%emt 0:00:01]} Rc8 {[%emt 0:00:02]} 34. Rd3 {[%emt 0:01:15]} Rc1+ {[%emt 0:00:41]} 35. Kh2 {[%emt 0:00:01]} h5 {[%emt 0:01:41]} 36. Re3 {[%emt 0:01:04]} Rxf2 {[%emt 0:00:28]} 37. Ree7 {[%emt 0:00:10]} Rff1 {[%emt 0:00:18]} 38. Rxg7+ {[%emt 0:00:07]} Kf8 {[%emt 0:00:02]} 39. g4 {[%emt 0:00:21]} h4 {[%emt 0:00:10]} 40. g3 {[%emt 0:00:34]} Rc2+ {[%emt 0:00:29]} 0-1